lending/lending_fUSD_20251107
["ID","MTS","AMOUNT","RATE_DAILY","PERIOD"]
[393351516,1762505449841,-300.0,0.00037687,2]
[393351517,1762505449850,-300.0,0.000377,15]
[393351518,1762505449859,-249.62,0.000377,30]
[393351519,1762505449868,-765.99026,0.000377,10]
[393351520,1762505449877,-1004.0,0.000377,7]
[393351521,1762505449886,-1000.0,0.00037708,7]
[393351522,1762505449895,-300.0,0.00037713,2]
[393351523,1762505449904,-150.0,0.0003772,7]
[393351524,1762505449913,-1000.0,0.00037721,7]
[393351525,1762505449922,-800.0,0.00037723,7]
[393351526,1762505449931,-2000.0,0.00037723,7]
[393351527,1762505449941,-247.58792515,0.00037723,15]
[393351528,1762505449950,-3388.54684246,0.00037731,10]
[393351529,1762505449959,-300.0,0.00037733,2]
[393351530,1762505449969,-1000.0,0.00037736,7]
[393351531,1762505449980,-300.0,0.00037738,2]
[393351532,1762505449992,-500.0,0.0003774,30]
[393351533,1762505450001,-1000.0,0.00037766,7]
[393351534,1762505450010,-152.0,0.00037774,15]
[393351535,1762505450020,-353.86,0.00037777,14]
[393351536,1762505450030,-300.0,0.00037783,2]
[393351537,1762505450039,-300.0,0.00037787,2]
[393351538,1762505450048,-300.0,0.00037791,2]
[393351539,1762505450058,-300.0,0.00037798,2]
[393351540,1762505450068,-362.43,0.000378,120]
[393351541,1762505450077,-548.24474219,0.0003781,30]
[393351542,1762505450087,-300.0,0.0003781,2]
[393351543,1762505450096,-1000.0,0.00037815,7]
[393351544,1762505450105,-548.34,0.00037819,7]
[393351545,1762505450115,-500.0,0.00037819,7]
[393351546,1762505450124,-500.0,0.00037819,7]
[393351547,1762505450133,-500.0,0.00037819,7]
[393351548,1762505450143,-500.0,0.00037819,7]
[393351549,1762505450152,-500.0,0.00037819,7]
[393351550,1762505450161,-500.0,0.00037819,7]
[393351551,1762505450170,-500.0,0.00037819,7]
[393351552,1762505450179,-500.0,0.00037819,7]
[393351553,1762505450189,-500.0,0.00037819,7]
[393351554,1762505450199,-500.0,0.00037819,7]
[393351555,1762505450208,-622.66,0.00037819,7]
[393351556,1762505450217,-300.0,0.00037832,2]
[393351557,1762505450227,-1000.0,0.00037837,7]
[393351558,1762505450236,-300.0,0.00037844,2]
[393351559,1762505450245,-1000.0,0.0003785,7]
[393351560,1762505450255,-150.0,0.00037858,7]
[393351561,1762505450264,-1000.0,0.00037858,7]
[393351562,1762505450273,-1000.0,0.00037862,7]
[393351563,1762505450283,-2127.502164,0.00037862,31]
[393351564,1762505450292,-2127.502164,0.00037862,31]
[393351565,1762505450303,-2127.502164,0.00037862,31]
[393351566,1762505450315,-2127.502164,0.00037862,31]
[393351567,1762505450325,-150.0,0.00037863,7]
[393351568,1762505450334,-199.0,0.00037863,15]
[393351569,1762505450344,-161.21430741,0.00037863,30]
[393351570,1762505450353,-150.0,0.00037864,7]
[393351571,1762505450362,-1000.0,0.00037867,7]
[393351572,1762505450371,-1000.0,0.00037868,7]
[393351573,1762505450380,-300.0,0.00037878,2]
[393351574,1762505450390,-199.12835618,0.0003788,2]
[393351575,1762505450399,-26463.87857821,0.000379,5]
[393351576,1762505450410,-3881.33,0.000379,14]
[393351577,1762505450419,-300.0,0.000379,2]
[393351578,1762505450429,-1000.0,0.00037901,7]
[393351579,1762505450442,-300.0,0.00037923,2]
[393351580,1762505450451,-1000.0,0.00037926,7]
[393351581,1762505450460,-1018.08502858,0.00037927,20]
[393351582,1762505450470,-1024.68511275,0.00037927,20]
[393351583,1762505450479,-1021.9013524,0.00037927,20]
[393351584,1762505450489,-1029.71653732,0.00037927,20]
[393351585,1762505450498,-1012.44164238,0.00037927,20]
[393351586,1762505450507,-1090.40717642,0.00037927,20]
[393351587,1762505450516,-1123.71529903,0.00037927,20]
[393351588,1762505450526,-1131.72572974,0.00037927,20]
[393351589,1762505450535,-1003.62930552,0.00037927,20]
[393351590,1762505450544,-1136.15199695,0.00037927,20]
[393351591,1762505450553,-1123.35581994,0.00037927,20]
[393351592,1762505450562,-1053.80411144,0.00037927,20]
[393351593,1762505450572,-1079.98196167,0.00037927,20]
[393351594,1762505450581,-1057.89364933,0.00037927,20]
[393351595,1762505450590,-1063.08622327,0.00037927,20]
[393351596,1762505450599,-1101.64304475,0.00037927,20]
[393351597,1762505450608,-1058.75363994,0.00037927,20]
[393351598,1762505450617,-300.0,0.00037936,2]
[393351599,1762505450627,-150.0,0.0003794,7]
[393351600,1762505450636,-2027.0,0.00037941,2]
[393351601,1762505450645,-300.0,0.00037949,2]
[393351602,1762505450654,-353.39331684,0.00037955,2]
[393351603,1762505450663,-300.0,0.00037964,2]
[393351604,1762505450672,-47414.83695811,0.0003797,2]
[393351605,1762505450687,-2792.02791415,0.0003797,2]
[393351606,1762505450698,-22392.20641943,0.0003797,2]
[393351610,1762505673911,500.0,0.00038731,120]
[393351611,1762505674132,500.0,0.00038731,120]
[393351612,1762505674616,500.0,0.00038731,120]
[393351613,1762505674648,500.0,0.00038731,120]
[393351614,1762505674859,500.0,0.00038731,120]
[393351615,1762505675243,500.0,0.00038731,120]
[393351616,1762505675340,500.0,0.00038731,120]
[393351617,1762505675583,500.0,0.00038731,120]
[393351618,1762505675830,500.0,0.00038731,120]
[393351619,1762505676067,500.0,0.00038731,120]
[393351620,1762505676302,500.0,0.00038731,120]
[393351621,1762505676532,500.0,0.00038731,120]
[393351622,1762505676777,500.0,0.00038731,120]
[393351623,1762505677013,500.0,0.00038731,120]
[393351624,1762505677243,500.0,0.00038731,120]
[393351625,1762505677504,500.0,0.00038731,120]
[393351626,1762505677883,500.0,0.00038731,120]
[393351627,1762505678127,500.0,0.00038731,120]
[393351628,1762505678386,500.0,0.00038731,120]
[393351629,1762505678619,438.97715702,0.00038731,120]
[393351630,1762505861201,455.0,0.00030136,120]
[393351632,1762506024217,250.0,0.00017,2]
[393351633,1762506190091,1824.18,0.00030137,120]
[393351634,1762506455153,164.39,0.00038729,30]
[393351635,1762506516114,184.52724052,0.00038729,30]
[393351653,1762506632365,-300.0,0.00019,2]
[393351654,1762506632376,-250.0,0.000209,2]
[393351655,1762506632387,-477.99034883,0.00024923,2]
[393351656,1762506632398,-162.36187254,0.00027268,2]
[393351657,1762506632409,-994.78509968,0.00028105,2]
[393351658,1762506632419,-37.06279895,0.00029003,3]
[393351660,1762506632631,-114.93720105,0.00029003,3]
[393351661,1762506632642,-152.0,0.00029734,4]
[393351662,1762506632653,-152.0,0.00030465,5]
[393351663,1762506632664,-172.94515404,0.00030866,62]
[393351664,1762506632675,-380.0,0.00030965,2]
[393351665,1762506632686,-1200.0,0.00030965,2]
[393351666,1762506632697,-300.0,0.00030965,2]
[393351667,1762506632708,-1200.0,0.00030966,2]
[393351668,1762506632719,-550.0,0.00030966,2]
[393351669,1762506632730,-607.0,0.00030967,2]
[393351670,1762506632741,-1596.0,0.00030967,2]
[393351672,1762506632751,-820.0,0.00030967,2]
[393351673,1762506632761,-812.0,0.00030967,2]
[393351674,1762506632772,-1273.0,0.00030967,2]
[393351675,1762506632783,-6476.0,0.00030967,2]
[393351676,1762506632793,-559.0,0.00030967,2]
[393351678,1762506632804,-6659.0,0.00030967,2]
[393351679,1762506632814,-500.0,0.00031,5]
[393351680,1762506632825,-269.52066072,0.00031,5]
[393351681,1762506632836,-152.0,0.00031196,6]
[393351682,1762506632846,-5000.0,0.00031546,2]
[393351683,1762506632857,-525.88457215,0.00031548,5]
[393351686,1762506632869,-152.0,0.00031927,7]
[393351688,1762506632880,-200.0,0.0003223,2]
[393351690,1762506632891,-500.0,0.0003225,120]
[393351692,1762506632902,-1713.98,0.00032392,30]
[393351694,1762506632912,-528.3672328,0.00032606,2]
[393351697,1762506632922,-1852.42,0.00032607,2]
[393351699,1762506632933,-152.0,0.00032658,8]
[393351701,1762506632943,-200.0,0.00032756,2]
[393351703,1762506632953,-361.19149901,0.00032877,7]
[393351705,1762506632964,-150.0,0.00032985,2]
[393351707,1762506632974,-671.92,0.00032985,30]
[393351708,1762506632983,-1000.0,0.00032999,2]
[393351711,1762506632993,-56296.45286086,0.00033,30]
[393351713,1762506633003,-3848.471,0.00033105,2]
[393351714,1762506633014,-234.3744,0.00033105,2]
[393351717,1762506633025,-279.795,0.00033105,2]
[393351719,1762506633035,-574.0,0.00033141,2]
[393351721,1762506633047,-3424.0,0.00033141,2]
[393351723,1762506633057,-1316.0,0.00033141,2]
[393351725,1762506633068,-626.82797415,0.00033204,2]
[393351726,1762506633082,-40938.74304791,0.00033205,2]
[393351729,1762506633092,-500.0,0.00033507,5]
[393351731,1762506633102,-607.54870183,0.00033507,5]
[393351733,1762506633112,-500.0,0.00033507,5]
[393351735,1762506633123,-295.47901701,0.00033507,5]
[393351736,1762506633134,-500.0,0.00033507,5]
[393351738,1762506633144,-500.64822633,0.00033507,5]
[393351739,1762506633155,-214.84899531,0.00033507,5]
[393351740,1762506633165,-500.0,0.00033507,5]
[393351741,1762506633176,-1348.43965413,0.00033528,2]
[393351742,1762506633189,-502.06961086,0.00033556,3]
[393351743,1762506633200,-505.63349764,0.00033556,5]
[393351744,1762506633211,-500.0,0.00033556,5]
[393351745,1762506633221,-500.0,0.00033556,5]
[393351746,1762506633232,-500.0,0.00033556,2]
[393351747,1762506633243,-500.0,0.00033556,5]
[393351748,1762506633253,-426.80169483,0.00033556,5]
[393351749,1762506633263,-500.0,0.00033556,5]
[393351750,1762506633273,-200.20712979,0.00033556,5]
[393351751,1762506633283,-500.0,0.00033556,5]
[393351752,1762506633294,-2500.0,0.00033628,2]
[393351753,1762506633304,-2000.0,0.000337,2]
[393351754,1762506633314,-500.0,0.00033727,7]
[393351755,1762506633324,-153.11522612,0.00033727,7]
[393351756,1762506633334,-172.67681041,0.00033727,7]
[393351757,1762506633344,-21274.26010636,0.00033728,2]
[393351758,1762506633485,-1245.16315287,0.00033728,2]
[393351759,1762506633498,-452.11662572,0.00033728,2]
[393351760,1762506633511,-440.56810984,0.00033728,2]
[393351761,1762506633523,-1000.0,0.00033728,2]
[393351762,1762506633535,-510.0,0.00033728,2]
[393351774,1762506638464,-1114.71086681,0.00030967,2]
[393351790,1762506640312,-988.73942598,0.00025021,30]
[393351797,1762506640372,-11.26057402,0.00025021,30]
[393351799,1762506640382,-1000.0,0.00025021,30]
[393351800,1762506640391,-896.737,0.00025021,30]
[393351801,1762506640400,-1027.28913319,0.00030967,2]
[393351802,1762506640411,-1428.76,0.00033354,2]
[393351803,1762506640420,-34386.26200521,0.00033728,2]
[393351804,1762506640429,-2087.12647291,0.00033728,2]
[393351805,1762506640441,-500.0,0.00033773,5]
[393351806,1762506640450,-500.0,0.00033773,5]
[393351807,1762506640460,-1000.0,0.00033838,2]
[393351808,1762506640469,-160.47221097,0.0003385,2]
[393351809,1762506640478,-500.81946819,0.00033857,5]
[393351810,1762506640487,-151.0,0.00033918,2]
[393351811,1762506640496,-151.0,0.00033918,2]
[393351812,1762506640505,-151.0,0.00033918,2]
[393351813,1762506640514,-151.0,0.00033918,2]
[393351814,1762506640524,-151.0,0.00033918,2]
[393351815,1762506640533,-151.0,0.00033918,2]
[393351816,1762506640542,-151.0,0.00033918,2]
[393351817,1762506640552,-151.0,0.00033918,2]
[393351818,1762506640561,-151.0,0.00033918,2]
[393351819,1762506640570,-151.0,0.00033918,2]
[393351820,1762506640583,-151.0,0.00033918,2]
[393351821,1762506640593,-151.0,0.00033918,2]
[393351822,1762506640602,-151.0,0.00033918,2]
[393351823,1762506640612,-151.0,0.00033918,2]
[393351824,1762506640621,-151.0,0.00033918,2]
[393351825,1762506640631,-151.0,0.00033918,2]
[393351826,1762506640641,-151.0,0.00033918,2]
[393351827,1762506640650,-151.0,0.00033918,2]
[393351828,1762506640660,-151.0,0.00033918,2]
[393351829,1762506640670,-151.0,0.00033918,2]
[393351830,1762506640679,-151.0,0.00033918,2]
[393351831,1762506640690,-151.0,0.00033918,2]
[393351832,1762506640701,-151.0,0.00033918,2]
[393351833,1762506640717,-151.0,0.00033918,2]
[393351834,1762506640726,-151.0,0.00033918,2]
[393351835,1762506640736,-151.0,0.00033918,2]
[393351836,1762506640746,-151.0,0.00033918,2]
[393351837,1762506640756,-151.0,0.00033918,2]
[393351838,1762506640766,-208.7547261,0.00033918,2]
[393351839,1762506640775,-151.0,0.00033918,2]
[393351840,1762506640785,-151.0,0.00033918,2]
[393351841,1762506640794,-151.0,0.00033918,2]
[393351842,1762506640803,-151.0,0.00033918,2]
[393351843,1762506640812,-151.0,0.00033918,2]
[393351844,1762506640821,-151.0,0.00033918,2]
[393351845,1762506640830,-151.0,0.00033918,2]
[393351846,1762506640839,-151.0,0.00033918,2]
[393351847,1762506640848,-500.0,0.00033938,120]
[393351848,1762506640857,-65283.96840202,0.00033938,2]
[393351849,1762506640866,-23190.8882556,0.00033941,3]
[393351850,1762506640875,-199.0,0.0003395,7]
[393351851,1762506640884,-500.0,0.0003395,30]
[393351852,1762506640894,-505.04241582,0.0003395,120]
[393351853,1762506640903,-500.0,0.00033951,7]
[393351854,1762506640912,-894.94597588,0.00033951,7]
[393351855,1762506640921,-500.0,0.00033951,7]
[393351856,1762506640930,-500.0,0.00033951,7]
[393351857,1762506640940,-500.0,0.00033951,7]
[393351858,1762506640949,-500.0,0.00033951,7]
[393351859,1762506640958,-500.0,0.00033951,7]
[393351860,1762506640968,-500.0,0.00033951,7]
[393351861,1762506640977,-912.15433829,0.00033951,7]
[393351862,1762506640986,-500.0,0.00033951,7]
[393351863,1762506640995,-500.0,0.00033951,7]
[393351864,1762506641003,-500.0,0.00033951,7]
[393351865,1762506641013,-500.0,0.00033951,7]
[393351866,1762506641024,-500.0,0.00033951,7]
[393351867,1762506641033,-500.0,0.00033951,7]
[393351868,1762506641044,-500.0,0.00033951,7]
[393351869,1762506641052,-500.0,0.00033951,7]
[393351870,1762506641062,-500.0,0.00033951,7]
[393351871,1762506641071,-500.0,0.00033951,7]
[393351872,1762506641080,-500.0,0.00033951,7]
[393351873,1762506641089,-500.0,0.00033951,7]
[393351874,1762506641099,-500.0,0.00033951,7]
[393351875,1762506641108,-500.0,0.00033951,7]
[393351876,1762506641117,-500.0,0.00033951,7]
[393351877,1762506641126,-500.0,0.00033951,7]
[393351878,1762506641135,-817.86864893,0.00033951,7]
[393351879,1762506641145,-500.0,0.00033951,7]
[393351880,1762506641153,-500.0,0.00033951,7]
[393351881,1762506641163,-500.0,0.00033951,7]
[393351882,1762506641172,-500.0,0.00033951,7]
[393351883,1762506641181,-500.0,0.00033951,7]
[393351884,1762506641191,-500.0,0.00033951,7]
[393351885,1762506641201,-500.0,0.00033951,7]
[393351886,1762506641210,-500.0,0.00033951,7]
[393351887,1762506641219,-500.0,0.00033951,7]
[393351888,1762506641228,-500.0,0.00033951,7]
[393351889,1762506641237,-500.0,0.00033951,7]
[393351890,1762506641246,-500.0,0.00033951,7]
[393351891,1762506641258,-500.0,0.00033951,7]
[393351892,1762506641267,-500.0,0.00033951,7]
[393351893,1762506641277,-500.0,0.00033951,7]
[393351894,1762506641286,-500.0,0.00033951,7]
[393351895,1762506641295,-500.0,0.00033951,7]
[393351896,1762506641303,-500.0,0.00033951,7]
[393351897,1762506641312,-500.0,0.00033951,7]
[393351898,1762506641322,-500.0,0.00033951,7]
[393351899,1762506641331,-500.0,0.00033951,7]
[393351900,1762506641339,-500.0,0.00033951,7]
[393351901,1762506641348,-500.0,0.00033951,7]
[393351902,1762506641358,-500.0,0.00033951,7]
[393351903,1762506641370,-500.0,0.00033951,7]
[393351904,1762506641379,-500.0,0.00033951,7]
[393351905,1762506641388,-700.0,0.00033951,7]
[393351906,1762506641397,-607.0,0.00033967,2]
[393351907,1762506641406,-1596.0,0.00033967,2]
[393351908,1762506641415,-820.0,0.00033967,2]
[393351909,1762506641425,-812.0,0.00033967,2]
[393351910,1762506641434,-1273.0,0.00033967,2]
[393351911,1762506641444,-6476.0,0.00033967,2]
[393351912,1762506641453,-559.0,0.00033967,2]
[393351913,1762506641462,-6659.0,0.00033967,2]
[393351914,1762506641472,-2142.0,0.00033967,2]
[393351915,1762506641481,-500.0,0.00033973,5]
[393351916,1762506641491,-501.0816036,0.00033973,5]
[393351917,1762506641499,-500.0,0.00033973,5]
[393351918,1762506641510,-500.0,0.00033973,5]
[393351919,1762506641519,-2000.0,0.00034,2]
[393351920,1762506641530,-2000.0,0.00034,2]
[393351921,1762506641539,-2000.0,0.00034,2]
[393351922,1762506641548,-2000.0,0.00034,2]
[393351923,1762506641557,-1999.99,0.00034,2]
[393351924,1762506641566,-1999.97,0.00034,2]
[393351925,1762506641574,-1348.43965407,0.00034004,2]
[393351926,1762506641583,-625.33684407,0.00034055,5]
[393351927,1762506641592,-204.28733051,0.00034104,5]
[393351928,1762506641601,-500.0,0.00034104,5]
[393351929,1762506641610,-6315.01,0.00034236,2]
[393351930,1762506641620,-23190.8882556,0.00034437,3]
[393351931,1762506641629,-1348.43965407,0.0003448,2]
[393351932,1762506641638,-3738.887199,0.00034481,2]
[393351933,1762506641647,-199.0,0.00034498,8]
[393351934,1762506641656,-10000.0,0.000345,60]
[393351935,1762506641665,-500.0,0.00034521,5]
[393351936,1762506641674,-1000.0,0.00034521,5]
[393351937,1762506641683,-186.34621054,0.00034724,15]
[393351938,1762506641693,-265.77,0.00034724,4]
[393351939,1762506641702,-5000.0,0.00034761,5]
[393351940,1762506641711,-216.94274446,0.0003478,2]
[393351941,1762506641720,-9991.1379,0.0003478,2]
[393351942,1762506641729,-23190.8882556,0.00034814,3]
[393351943,1762506641738,-69572.6647667,0.00034851,3]
[393351944,1762506641747,-151.0,0.00034858,14]
[393351945,1762506641756,-1158.78187974,0.0003486,30]
[393351946,1762506641765,-500.0,0.0003486,120]
[393351947,1762506641774,-139145.329533,0.0003486,3]
[393351948,1762506641783,-131495.66248,0.0003486,3]
[393351949,1762506641792,-150.07,0.0003486,2]
[393351950,1762506641801,-500.0,0.0003487,120]
[393351951,1762506641810,-231908.882556,0.0003487,3]
[393351952,1762506641819,-230117.409341,0.0003487,3]
[393351953,1762506641828,-150.07,0.0003487,2]
[393351954,1762506641838,-150.07,0.0003487,2]
[393351955,1762506641847,-151.0,0.00034877,14]
[393351956,1762506641856,-999.0,0.00034879,120]
[393351957,1762506641865,-500.0,0.00034879,120]
[393351958,1762506641874,-500.0,0.00034879,120]
[393351959,1762506641883,-1943.0,0.0003488,5]
[393351960,1762506641892,-420000.0,0.0003488,2]
[393351961,1762506641901,-1000.0,0.0003488,120]
[393351962,1762506641910,-1000.0,0.0003488,2]
[393351963,1762506641921,-33266.2593,0.0003488,2]
[393351964,1762506641930,-7371.2255,0.0003488,2]
[393351965,1762506641938,-390.41,0.000349,14]
[393351966,1762506641947,-1348.43965407,0.00034957,2]
[393351967,1762506641956,-150.07,0.0003498,2]
[393351968,1762506641965,-1017.2501,0.00034989,2]
[393351969,1762506641975,-150.0,0.00034989,20]
[393351970,1762506641984,-23190.8882556,0.0003499,3]
[393351971,1762506641993,-147932.62029,0.0003499,3]
[393351972,1762506642002,-150.07,0.0003499,2]
[393351973,1762506642011,-150.07,0.0003499,2]
[393351974,1762506642020,-150.07,0.0003499,2]
[393351975,1762506642029,-150.07,0.0003499,2]
[393351976,1762506642039,-150.07,0.0003499,2]
[393351977,1762506642048,-150.07,0.0003499,2]
[393351978,1762506642058,-150.07,0.0003499,2]
[393351979,1762506642066,-150.07,0.0003499,2]
[393351980,1762506642075,-151.0,0.00034997,14]
[393351981,1762506642085,-151.0,0.00034997,14]
[393351982,1762506642095,-300.0,0.00034999,10]
[393351983,1762506642104,-528.75,0.00034999,120]
[393351984,1762506642113,-79153.1204685,0.00035,2]
[393351985,1762506642127,-312.20367726,0.00035,2]
[393351986,1762506642296,-292.94416607,0.00035,2]
[393352014,1762506643613,-341.23561603,0.00035,2]
[393352015,1762506643698,-688.42286,0.00035,2]
[393352016,1762506643709,-1272.0,0.00035,2]
[393352017,1762506643720,-1431.75,0.00035,2]
[393352021,1762506646439,-1188.0,0.0003264,2]
[393352022,1762506646462,-4917.0,0.00034758,2]
[393352023,1762506646550,-942.323911,0.00034758,2]
[393352024,1762506646769,-5077.0668,0.00034758,2]
[393352029,1762507028857,414.0,0.0003873,30]
[393352030,1762507029447,429.318,0.0003873,30]
[393352031,1762507030049,445.202766,0.0003873,30]
[393352032,1762507030645,461.67526834,0.0003873,30]
[393352033,1762507030704,270.24007734,0.0003873,30]
[393352034,1762507030785,500.0,0.0003873,30]
[393352035,1762507031262,478.75725327,0.0003873,30]
[393352036,1762507031397,500.0,0.0003873,30]
[393352037,1762507031865,496.47127164,0.0003873,30]
[393352038,1762507032023,500.0,0.0003873,30]
[393352039,1762507032469,514.84070869,0.0003873,30]
[393352040,1762507032518,303.33383452,0.0003873,30]
[393352041,1762507032656,500.0,0.0003873,30]
[393352042,1762507033073,533.88981491,0.0003873,30]
[393352043,1762507033287,500.0,0.0003873,30]
[393352044,1762507033681,553.64373807,0.0003873,30]
[393352045,1762507034115,500.0,0.0003873,30]
[393352046,1762507034312,574.12855637,0.0003873,30]
[393352047,1762507034934,595.37131296,0.0003873,30]
[393352048,1762507035602,617.40005154,0.0003873,30]
[393352049,1762507036224,640.24385345,0.0003873,30]
[393352050,1762507036879,663.93287602,0.0003873,30]
[393352052,1762507037500,663.93287602,0.0003873,30]
[393352151,1762507428624,817.30111781,0.00030137,120]
[393352154,1762507478509,1664.82,0.00038732,120]
[393352155,1762507478968,1664.82,0.00038732,120]
[393352156,1762507479205,1664.82,0.00038732,120]
[393352157,1762507479434,1664.82,0.00038732,120]
[393352158,1762507479687,1664.82,0.00038732,120]
[393352159,1762507479943,1664.82,0.00038732,120]
[393352160,1762507480199,1664.82,0.00038732,120]
[393352161,1762507480428,1664.82,0.00038732,120]
[393352162,1762507480668,1664.82,0.00038732,120]
[393352163,1762507480906,1664.82,0.00038732,120]
[393352164,1762507481147,1664.82,0.00038732,120]
[393352165,1762507481384,1664.82,0.00038732,120]
[393352166,1762507481614,1664.82,0.00038732,120]
[393352167,1762507481857,1664.82,0.00038732,120]
[393352168,1762507482092,1664.82,0.00038732,120]
[393352169,1762507482403,1664.82,0.00038732,120]
[393352170,1762507482650,1664.82,0.00038732,120]
[393352171,1762507482881,1664.82,0.00038732,120]
[393352172,1762507483121,1664.82,0.00038732,120]
[393352173,1762507483364,1664.82,0.00038732,120]
[393352174,1762507483646,1664.82,0.00038732,120]
[393352175,1762507483889,1664.82,0.00038732,120]
[393352176,1762507484130,1664.82,0.00038732,120]
[393352177,1762507484372,1665.03803306,0.00038732,120]
[393352179,1762507508164,4250.0,0.00018,2]
[393352184,1762507586105,2029.41050021,0.00015,2]
[393352185,1762507670077,4567.93040161,0.00015,2]
[393352186,1762507670102,6597.34090182,0.00015,2]
[393352187,1762507670126,6597.34090182,0.00015,2]
[393352188,1762507670148,6597.34090182,0.00015,2]
[393352189,1762507670170,6597.34090182,0.00015,2]
[393352190,1762507670192,6597.34090182,0.00015,2]
[393352191,1762507670213,6597.34090182,0.00015,2]
[393352192,1762507670235,6550.47065437,0.00015,2]
[393352193,1762507722146,176.87,0.0001799,3]
[393352198,1762507759233,46.87024745,0.00013699,2]
[393352199,1762507759255,643.82975255,0.00013699,2]
[393352214,1762507831490,-300.0,0.00016958,2]
[393352216,1762507831500,-503.67,0.00016958,2]
[393352218,1762507831546,-696.33,0.00016958,2]
[393352219,1762507831556,-300.0,0.00016958,2]
[393352220,1762507831565,-9241.26376891,0.00016959,2]
[393352221,1762507831576,-1486.47249204,0.00016959,2]
[393352222,1762507831602,-6316.26373905,0.00016959,2]
[393352223,1762507831612,-550.0,0.00016987,2]
[393352224,1762507831621,-500.0,0.00016988,2]
[393352225,1762507831630,-500.0,0.00016988,2]
[393352226,1762507831639,-500.0,0.00016988,2]
[393352227,1762507831648,-500.0,0.00016988,2]
[393352228,1762507831657,-615.80872348,0.00016988,2]
[393352229,1762507831667,-500.0,0.00016988,2]
[393352230,1762507831677,-500.0,0.00016988,2]
[393352231,1762507831687,-500.0,0.00016988,2]
[393352232,1762507831696,-233.95597891,0.00016988,2]
[393352233,1762507831707,-266.04402109,0.00016988,2]
[393352234,1762507831717,-197.39063552,0.00016988,2]
[393352235,1762507831728,-302.60936448,0.00016988,2]
[393352236,1762507831737,-500.0,0.00016988,2]
[393352237,1762507831747,-500.0,0.00016988,2]
[393352238,1762507831758,-500.0,0.00016988,2]
[393352239,1762507831768,-500.0,0.00016988,2]
[393352240,1762507831777,-500.0,0.00016988,2]
[393352241,1762507831786,-500.0,0.00016988,2]
[393352242,1762507831798,-500.0,0.00016988,2]
[393352243,1762507831807,-500.0,0.00016988,2]
[393352244,1762507831816,-500.0,0.00016988,2]
[393352245,1762507831827,-500.0,0.00016988,2]
[393352246,1762507831836,-500.0,0.00016988,2]
[393352247,1762507831845,-500.0,0.00016988,2]
[393352248,1762507831854,-500.0,0.00016988,2]
[393352249,1762507831863,-500.0,0.00016988,2]
[393352250,1762507831872,-15499.99999998,0.0001699,2]
[393352252,1762507831881,-250.0,0.00017,2]
[393352254,1762507831890,-375.59510799,0.000179,2]
[393352256,1762507831899,-171.69295478,0.000179,2]
[393352257,1762507831909,-362.54730038,0.000179,2]
[393352260,1762507831919,-178.73446322,0.000179,2]
[393352261,1762507831929,-729.32759125,0.000179,2]
[393352263,1762507831938,-12986.42461888,0.000179,2]
[393352266,1762507831952,-1246.01731037,0.000179,2]
[393352268,1762507831963,-20401.27309524,0.000179,2]
[393352270,1762507831975,-37305.15197736,0.000179,2]